fUST/lending_fUST_20241107
["ID","MTS","AMOUNT","RATE_DAILY","PERIOD"]
[341559690,1730991044603,-500.0,0.00030136,2]
[341559691,1730991044613,-500.0,0.00030136,2]
[341559692,1730991044623,-500.0,0.00030136,2]
[341559693,1730991044636,-506.21018053,0.00030136,2]
[341559694,1730991044645,-500.0,0.00030136,2]
[341559695,1730991044655,-500.0,0.00030136,2]
[341559696,1730991044664,-500.0,0.00030136,2]
[341559697,1730991044679,-503.17028996,0.00030136,2]
[341559698,1730991044689,-487.15238925,0.00030136,2]
[341559699,1730991044699,-151.0,0.00030136,7]
[341559700,1730991044709,-151.0,0.00030136,7]
[341559701,1730991044720,-151.0,0.00030136,7]
[341559702,1730991044730,-166.13895682,0.00030136,2]
[341559703,1730991044743,-333.86104318,0.00030136,2]
[341559704,1730991044753,-256.83178,0.00030136,7]
[341559705,1730991044762,-151.0,0.00030136,7]
[341559706,1730991044772,-500.0,0.00030136,2]
[341559707,1730991044781,-151.0,0.00030136,7]
[341559708,1730991044791,-500.0,0.00030136,2]
[341559709,1730991044801,-500.0,0.00030136,2]
[341559710,1730991044810,-151.0,0.00030136,7]
[341559711,1730991044820,-500.0,0.00030136,2]
[341559712,1730991044830,-500.0,0.00030136,2]
[341559713,1730991044840,-500.0,0.00030136,2]
[341559714,1730991044850,-500.0,0.00030136,2]
[341559715,1730991044860,-159.096858,0.00030136,7]
[341559716,1730991044870,-159.096858,0.00030136,7]
[341559717,1730991044881,-500.0,0.00030136,2]
[341559718,1730991044892,-159.096858,0.00030136,7]
[341559719,1730991044904,-159.096858,0.00030136,7]
[341559720,1730991044914,-151.0,0.00030136,7]
[341559721,1730991044924,-500.0,0.00030136,2]
[341559722,1730991044934,-500.0,0.00030136,2]
[341559723,1730991044945,-500.0,0.00030136,2]
[341559724,1730991044956,-500.0,0.00030136,2]
[341559725,1730991044967,-500.0,0.00030136,2]
[341559726,1730991044977,-500.0,0.00030136,2]
[341559727,1730991044987,-151.0,0.00030136,7]
[341559728,1730991044997,-151.0,0.00030136,7]
[341559729,1730991045007,-1061.65,0.00030136,2]
[341559730,1730991045017,-500.0,0.00030136,2]
[341559731,1730991045027,-597.65792378,0.00030136,2]
[341559732,1730991045037,-500.0,0.00030136,2]
[341559733,1730991045046,-381.42578081,0.00030136,2]
[341559742,1730991046072,-118.57421919,0.00030136,2]
[341559743,1730991046084,-198.561047,0.00030136,7]
[341559744,1730991046094,-500.0,0.00030136,2]
[341559745,1730991046105,-500.0,0.00030136,2]
[341559746,1730991046122,-500.0,0.00030136,2]
[341559747,1730991046139,-500.0,0.00030136,2]
[341559748,1730991046149,-500.0,0.00030136,2]
[341559749,1730991046160,-1645.94,0.00030136,2]
[341559750,1730991046171,-4718.11,0.00030136,2]
[341559751,1730991046182,-500.0,0.00030136,2]
[341559752,1730991046192,-500.0,0.00030136,2]
[341559753,1730991046203,-500.0,0.00030136,2]
[341559754,1730991046215,-500.0,0.00030136,2]
[341559755,1730991046227,-500.0,0.00030136,2]
[341559756,1730991046245,-500.0,0.00030136,2]
[341559757,1730991046257,-500.0,0.00030136,2]
[341559758,1730991046268,-500.0,0.00030136,2]
[341559759,1730991046279,-500.0,0.00030136,2]
[341559760,1730991046290,-500.0,0.00030136,2]
[341559761,1730991046299,-151.0,0.00030136,7]
[341559762,1730991046309,-151.0,0.00030136,7]
[341559763,1730991046320,-500.0,0.00030136,2]
[341559764,1730991046330,-500.0,0.00030136,2]
[341559765,1730991046340,-500.0,0.00030136,2]
[341559766,1730991046351,-151.0,0.00030136,7]
[341559767,1730991046360,-151.0,0.00030136,7]
[341559768,1730991046370,-500.0,0.00030136,2]
[341559769,1730991046381,-503.91404979,0.00030136,2]
[341559770,1730991046392,-612.85,0.00030136,2]
[341559771,1730991046402,-159.788811,0.00030136,7]
[341559772,1730991046411,-159.788811,0.00030136,7]
[341559773,1730991046555,-159.788811,0.00030136,7]
[341559774,1730991046565,-159.788811,0.00030136,7]
[341559775,1730991046576,-500.0,0.00030136,2]
[341559776,1730991046586,-151.0,0.00030136,7]
[341559777,1730991046596,-500.0,0.00030136,2]
[341559778,1730991046607,-2376.96,0.00030136,2]
[341559779,1730991046616,-500.0,0.00030136,2]
[341559780,1730991046628,-399.99999901,0.000302,10]
[341559781,1730991046640,-3364.1982643,0.0003025,3]
[341559782,1730991046650,-3600.81820443,0.00030333,2]
[341559783,1730991046660,-151.0,0.00030333,7]
[341559784,1730991046670,-159.788811,0.00030333,7]
[341559785,1730991046679,-159.788811,0.00030333,7]
[341559786,1730991046689,-168.753,0.0003034,120]
[341559787,1730991046703,-151.0,0.00030364,7]
[341559788,1730991046713,-151.0,0.000304,7]
[341559789,1730991046722,-159.096858,0.000304,7]
[341559790,1730991046731,-159.096858,0.000304,7]
[341559791,1730991046741,-853.74,0.000304,3]
[341559792,1730991046750,-151.0,0.000304,7]
[341559793,1730991046759,-151.0,0.000304,7]
[341559794,1730991046770,-1810.78,0.000304,10]
[341559795,1730991046779,-1508.99,0.000304,10]
[341559796,1730991046788,-151.0,0.0003041,7]
[341559797,1730991046797,-151.0,0.0003041,7]
[341559798,1730991046808,-151.0,0.0003041,7]
[341559799,1730991046817,-151.0,0.0003041,7]
[341559800,1730991046827,-151.0,0.0003041,7]
[341559801,1730991046836,-151.0,0.0003041,7]
[341559802,1730991046845,-500.0,0.0003041,2]
[341559803,1730991046855,-151.0,0.0003041,7]
[341559804,1730991046865,-366.11733526,0.0003041,2]
[341559805,1730991046874,-500.0,0.0003041,2]
[341559806,1730991046885,-151.0,0.0003041,7]
[341559807,1730991046894,-500.0,0.0003041,2]
[341559808,1730991046904,-500.0,0.0003041,2]
[341559809,1730991046914,-500.0,0.0003041,2]
[341559810,1730991046924,-500.0,0.0003041,2]
[341559811,1730991046934,-159.096858,0.0003041,7]
[341559812,1730991046943,-500.0,0.0003041,2]
[341559813,1730991046953,-159.096858,0.0003041,7]
[341559814,1730991046963,-500.0,0.0003041,2]
[341559815,1730991046973,-210.37815317,0.0003041,2]
[341559816,1730991046983,-500.0,0.0003041,2]
[341559817,1730991046993,-500.0,0.0003041,2]
[341559818,1730991047002,-500.0,0.0003041,2]
[341559819,1730991047012,-151.0,0.0003041,7]
[341559820,1730991047022,-151.0,0.0003041,7]
[341559821,1730991047031,-1061.65,0.0003041,2]
[341559822,1730991047041,-500.0,0.0003041,2]
[341559823,1730991047050,-500.0,0.0003041,2]
[341559824,1730991047060,-500.0,0.0003041,2]
[341559825,1730991047069,-1645.94,0.0003041,2]
[341559826,1730991047079,-4718.11,0.0003041,2]
[341559827,1730991047089,-259.64,0.0003041,2]
[341559828,1730991047099,-500.0,0.0003041,2]
[341559829,1730991047110,-500.0,0.0003041,2]
[341559830,1730991047119,-500.0,0.0003041,2]
[341559831,1730991047129,-500.0,0.0003041,2]
[341559832,1730991047141,-501.67971165,0.0003041,2]
[341559833,1730991047156,-500.0,0.0003041,2]
[341559834,1730991047168,-500.0,0.0003041,2]
[341559835,1730991047179,-500.0,0.0003041,2]
[341559836,1730991047190,-500.0,0.0003041,2]
[341559837,1730991047200,-151.0,0.0003041,7]
[341559838,1730991047212,-151.0,0.0003041,7]
[341559839,1730991047222,-500.0,0.0003041,2]
[341559840,1730991047233,-500.0,0.0003041,2]
[341559841,1730991047246,-151.0,0.0003041,7]
[341559842,1730991047256,-199.788498,0.0003041,7]
[341559843,1730991047266,-500.0,0.0003041,2]
[341559844,1730991047275,-612.85,0.0003041,2]
[341559845,1730991047287,-159.788811,0.0003041,7]
[341559846,1730991047298,-159.788811,0.0003041,7]
[341559847,1730991047308,-159.788811,0.0003041,7]
[341559848,1730991047319,-159.788811,0.0003041,7]
[341559849,1730991047329,-500.0,0.0003041,2]
[341559850,1730991047345,-500.0,0.0003041,2]
[341559851,1730991047355,-2376.96,0.0003041,2]
[341559852,1730991047365,-500.0,0.00030485,5]
[341559853,1730991047375,-500.0,0.00030485,5]
[341559854,1730991047387,-500.0,0.00030485,5]
[341559855,1730991047396,-500.0,0.00030485,2]
[341559856,1730991047407,-151.0,0.00030492,7]
[341559857,1730991047416,-159.096858,0.00030492,7]
[341559858,1730991047426,-159.096858,0.00030492,7]
[341559859,1730991047435,-161.75021146,0.00030518,2]
[341559860,1730991047446,-500.0,0.00030519,2]
[341559861,1730991047455,-500.0,0.00030528,5]
[341559862,1730991047466,-163.0,0.0003055,2]
[341559863,1730991047476,-162.45617148,0.00030588,5]
[341559864,1730991047486,-500.0,0.00030597,5]
[341559865,1730991047496,-500.0,0.00030597,5]
[341559866,1730991047506,-151.0,0.00030645,7]
[341559867,1730991047516,-151.0,0.00030645,7]
[341559868,1730991047527,-229.388904,0.00030645,7]
[341559869,1730991047537,-151.0,0.00030645,7]
[341559870,1730991047546,-3600.81820443,0.00030665,2]
[341559871,1730991047556,-1257.49,0.00030674,10]
[341559872,1730991047567,-281.264355,0.00030684,7]
[341559873,1730991047576,-151.0,0.00030684,7]
[341559874,1730991047586,-151.0,0.00030684,7]
[341559875,1730991047596,-500.0,0.00030684,2]
[341559876,1730991047606,-500.0,0.00030684,2]
[341559877,1730991047617,-151.0,0.00030684,7]
[341559878,1730991047627,-500.0,0.00030684,2]
[341559879,1730991047640,-500.0,0.00030684,2]
[341559880,1730991047650,-500.0,0.00030684,2]
[341559881,1730991047660,-500.0,0.00030684,2]
[341559882,1730991047670,-237.65,0.00030684,2]
[341559883,1730991047680,-159.096858,0.00030684,7]
[341559884,1730991047690,-159.096858,0.00030684,7]
[341559885,1730991047700,-500.0,0.00030684,2]
[341559886,1730991047710,-500.0,0.00030684,2]
[341559887,1730991047720,-500.0,0.00030684,2]
[341559888,1730991047729,-500.0,0.00030684,2]
[341559889,1730991047738,-1061.65,0.00030684,2]
[341559890,1730991047748,-264.37105085,0.00030684,2]
[341559891,1730991047758,-500.0,0.00030684,2]
[341559892,1730991047768,-500.0,0.00030684,2]
[341559893,1730991047778,-1645.94,0.00030684,2]
[341559894,1730991047788,-4718.11,0.00030684,2]
[341559895,1730991047797,-500.0,0.00030684,2]
[341559896,1730991047807,-500.0,0.00030684,2]
[341559897,1730991047817,-500.0,0.00030684,2]
[341559898,1730991047827,-500.0,0.00030684,2]
[341559899,1730991047837,-500.0,0.00030684,2]
[341559900,1730991047846,-500.0,0.00030684,2]
[341559901,1730991047855,-500.0,0.00030684,2]
[341559902,1730991047865,-500.0,0.00030684,2]
[341559903,1730991047875,-500.0,0.00030684,2]
[341559904,1730991047886,-500.0,0.00030684,2]
[341559905,1730991047896,-500.0,0.00030684,2]
[341559906,1730991047906,-612.85,0.00030684,2]
[341559907,1730991047916,-159.788811,0.00030684,7]
[341559908,1730991047925,-159.788811,0.00030684,7]
[341559909,1730991047935,-159.788811,0.00030684,7]
[341559910,1730991047945,-159.788811,0.00030684,7]
[341559911,1730991047955,-500.0,0.00030684,2]
[341559912,1730991047964,-429.95769895,0.00030684,2]
[341559915,1730991288976,165.850128,0.00013973,2]
[341559919,1730991416111,1169.27083333,0.00020843,2]
[341559920,1730991740366,301.096,0.00020843,2]
[341559935,1730992027897,1169.27083333,0.00020843,2]
[341560041,1730992232267,-164.9997392,0.0002763,2]
[341560042,1730992232278,-238.50672,0.00028258,2]
[341560043,1730992232287,-238.50672,0.00028943,2]
[341560044,1730992232423,-165.850128,0.00029349,2]
[341560045,1730992232437,-500.0,0.000295,7]
[341560046,1730992232448,-238.50672,0.00029628,2]
[341560047,1730992232459,-177.31930841,0.00029936,2]
[341560048,1730992232468,-524.417177,0.00029946,2]
[341560049,1730992232478,-223.0,0.00029998,2]
[341560050,1730992232489,-300.0,0.00029998,2]
[341560051,1730992232499,-217.7566861,0.00029999,2]
[341560052,1730992232510,-278.16772224,0.00029999,2]
[341560053,1730992232531,-221.83227776,0.00029999,2]
[341560054,1730992232547,-153.51646824,0.00029999,2]
[341560083,1730992238952,-346.48353176,0.00029999,2]
[341560084,1730992238964,-500.0,0.00029999,2]
[341560085,1730992238974,-557.64288793,0.00029999,2]
[341560086,1730992238983,-500.0,0.00029999,2]
[341560087,1730992238993,-500.0,0.00029999,2]
[341560088,1730992239004,-500.0,0.00029999,2]
[341560089,1730992239014,-500.0,0.00029999,2]
[341560090,1730992239024,-162.80987886,0.00029999,2]
[341560091,1730992239036,-13411.22180899,0.00029999,120]
[341560092,1730992239047,-61189.47326225,0.0003,30]
[341560093,1730992239060,-477.22265911,0.0003,30]
[341560161,1730992240349,-7107.51068186,0.0003,30]
[341560225,1730992246325,-6927.62142778,0.0003,30]
[341560226,1730992246337,-2250.51137783,0.00030036,2]
[341560227,1730992246347,-979.21,0.00030116,10]
[341560228,1730992246357,-1410.06,0.00030126,10]
[341560229,1730992246367,-1175.05,0.00030126,10]
[341560230,1730992246376,-608.386858,0.00030136,2]
[341560231,1730992246386,-2178.88,0.00030136,2]
[341560232,1730992246397,-500.0,0.00030136,2]
[341560233,1730992246407,-500.0,0.00030136,2]
[341560234,1730992246416,-500.0,0.00030136,2]
[341560235,1730992246426,-500.0,0.00030136,2]
[341560236,1730992246441,-500.0,0.00030136,2]
[341560237,1730992246451,-152.51994406,0.00030136,2]
[341560238,1730992246462,-500.0,0.00030136,2]
[341560239,1730992246472,-500.0,0.00030136,2]
[341560240,1730992246482,-500.0,0.00030136,2]
[341560241,1730992246492,-500.0,0.00030136,2]
[341560242,1730992246502,-500.0,0.00030136,2]
[341560243,1730992246512,-166.86486162,0.00030136,2]
[341560244,1730992246522,-500.0,0.00030136,2]
[341560245,1730992246532,-500.0,0.00030136,2]
[341560246,1730992246543,-928.94,0.00030136,2]
[341560247,1730992246553,-500.0,0.00030136,2]
[341560248,1730992246565,-500.0,0.00030136,2]
[341560249,1730992246576,-2132.11,0.00030136,2]
[341560250,1730992246588,-4128.35,0.00030136,2]
[341560251,1730992246598,-500.0,0.00030136,2]
[341560252,1730992246609,-500.0,0.00030136,2]
[341560253,1730992246619,-500.0,0.00030136,2]
[341560254,1730992246628,-500.0,0.00030136,2]
[341560255,1730992246638,-536.24,0.00030136,2]
[341560256,1730992246647,-575.37,0.00030136,2]
[341560257,1730992246656,-500.0,0.00030136,2]
[341560258,1730992246666,-500.0,0.00030136,2]
[341560259,1730992246675,-500.0,0.00030136,2]
[341560260,1730992246684,-500.0,0.00030136,2]
[341560261,1730992246694,-500.0,0.00030136,2]
[341560262,1730992246703,-524.417177,0.00030321,2]
[341560263,1730992246712,-2250.51137776,0.00030364,2]
[341560264,1730992246722,-2178.88,0.0003041,2]
[341560266,1730992246733,-500.0,0.0003041,2]
[341560267,1730992246745,-500.0,0.0003041,2]
[341560268,1730992246755,-500.0,0.0003041,2]
[341560269,1730992246764,-500.0,0.0003041,2]
[341560270,1730992246775,-500.0,0.0003041,2]
[341560271,1730992246784,-151.0,0.0003041,7]
[341560272,1730992246793,-151.0,0.0003041,7]
[341560273,1730992246803,-151.0,0.0003041,7]
[341560274,1730992246815,-151.0,0.0003041,7]
[341560275,1730992246825,-500.0,0.0003041,2]
[341560276,1730992246838,-500.0,0.0003041,2]
[341560277,1730992246848,-500.0,0.0003041,2]
[341560278,1730992246859,-500.0,0.0003041,2]
[341560279,1730992246868,-500.0,0.0003041,2]
[341560280,1730992246878,-151.0,0.0003041,7]
[341560281,1730992246887,-500.0,0.0003041,2]
[341560282,1730992246898,-500.0,0.0003041,2]
[341560283,1730992246908,-500.0,0.0003041,2]
[341560284,1730992246917,-928.94,0.0003041,2]
[341560285,1730992246927,-500.0,0.0003041,2]
[341560286,1730992246938,-2132.11,0.0003041,2]
[341560287,1730992246948,-4128.35,0.0003041,2]
[341560288,1730992246959,-500.0,0.0003041,2]
[341560289,1730992246969,-500.0,0.0003041,2]
[341560290,1730992246978,-500.0,0.0003041,2]
[341560291,1730992246988,-500.0,0.0003041,2]
[341560292,1730992246998,-536.24,0.0003041,2]
[341560293,1730992247008,-500.0,0.0003041,2]
[341560294,1730992247018,-151.0,0.0003041,7]
[341560295,1730992247029,-500.0,0.0003041,2]
[341560296,1730992247039,-500.0,0.0003041,2]
[341560297,1730992247052,-500.0,0.0003041,2]
[341560298,1730992247063,-500.0,0.0003041,2]
[341560299,1730992247073,-500.0,0.00030653,5]
[341560300,1730992247084,-500.0,0.00030662,5]
[341560301,1730992247094,-500.86409177,0.00030663,2]
[341560302,1730992247104,-564.9420453,0.00030672,5]
[341560303,1730992247115,-151.0,0.00030683,7]
[341560304,1730992247125,-151.0,0.00030683,7]
[341560305,1730992247134,-500.0,0.00030683,2]
[341560306,1730992247146,-243.24770857,0.00030683,2]
[341560307,1730992247156,-251.81548412,0.00030683,2]
[341560308,1730992247167,-413.05521587,0.00030683,2]
[341560309,1730992247177,-274.7182939,0.00030683,2]
[341560310,1730992247187,-176.27083888,0.00030683,2]
[341560311,1730992247198,-2178.88,0.00030684,2]
[341560312,1730992247208,-500.0,0.00030684,2]
[341560313,1730992247219,-354.7295095,0.00030684,2]
[341560314,1730992247230,-500.0,0.00030684,2]
[341560315,1730992247240,-500.0,0.00030684,2]
[341560316,1730992247250,-500.0,0.00030684,2]
[341560317,1730992247261,-151.0,0.00030684,7]
[341560318,1730992247271,-173.293173,0.00030684,7]
[341560319,1730992247281,-151.0,0.00030684,7]
[341560320,1730992247290,-570.04230105,0.00030684,2]
[341560321,1730992247300,-500.0,0.00030684,2]
[341560322,1730992247310,-500.0,0.00030684,2]
[341560323,1730992247321,-500.0,0.00030684,2]
[341560324,1730992247333,-500.0,0.00030684,2]
[341560325,1730992247344,-151.0,0.00030684,7]
[341560326,1730992247354,-500.0,0.00030684,2]
[341560327,1730992247366,-500.0,0.00030684,2]
[341560328,1730992247383,-500.0,0.00030684,2]
[341560329,1730992247396,-928.94,0.00030684,2]
[341560330,1730992247407,-277.48656923,0.00030684,2]
[341560331,1730992247417,-2132.11,0.00030684,2]
[341560332,1730992247426,-4128.35,0.00030684,2]
[341560333,1730992247436,-500.0,0.00030684,2]
[341560334,1730992247446,-319.3600458,0.00030684,2]
[341560335,1730992247457,-500.0,0.00030684,2]
[341560336,1730992247466,-500.0,0.00030684,2]
[341560337,1730992247476,-536.24,0.00030684,2]
[341560338,1730992247485,-500.0,0.00030684,2]
[341560339,1730992247495,-500.0,0.00030684,2]
[341560340,1730992247508,-500.0,0.00030684,2]
[341560341,1730992247519,-500.0,0.00030684,2]
[341560342,1730992247529,-500.0,0.00030684,2]
[341560343,1730992247539,-2250.51137776,0.00030693,2]
[341560344,1730992247549,-524.417177,0.00030695,2]
[341560345,1730992247560,-177.31930839,0.00030709,2]
[341560346,1730992247570,-500.0,0.00030767,5]
[341560347,1730992247585,-500.0,0.00030767,5]
[341560348,1730992247595,-500.0,0.00030767,2]
[341560349,1730992247606,-529.0,0.00030905,2]
[341560350,1730992247616,-514.1334172,0.00030932,5]
[341560351,1730992247629,-816.01,0.00030948,10]
[341560352,1730992247640,-151.0,0.00030957,7]
[341560353,1730992247649,-151.0,0.00030957,7]
[341560354,1730992247659,-2178.88,0.00030958,2]
[341560355,1730992247669,-500.0,0.00030958,2]
[341560356,1730992247678,-500.0,0.00030958,2]
[341560357,1730992247687,-500.0,0.00030958,2]
[341560358,1730992247697,-500.0,0.00030958,2]
[341560359,1730992247707,-151.0,0.00030958,7]
[341560360,1730992247717,-151.0,0.00030958,7]
[341560361,1730992247727,-500.0,0.00030958,2]
[341560362,1730992247737,-500.0,0.00030958,2]
[341560363,1730992247750,-500.0,0.00030958,2]
[341560364,1730992247759,-500.0,0.00030958,2]
[341560365,1730992247769,-500.0,0.00030958,2]
[341560366,1730992247779,-500.0,0.00030958,2]
[341560367,1730992247789,-928.94,0.00030958,2]
[341560368,1730992247799,-2132.11,0.00030958,2]
[341560369,1730992247809,-4128.35,0.00030958,2]
[341560370,1730992247821,-500.0,0.00030958,2]
[341560371,1730992247837,-500.0,0.00030958,2]
[341560372,1730992247849,-536.24,0.00030958,2]
[341560373,1730992247860,-500.0,0.00030958,2]
[341560374,1730992247869,-500.0,0.00030958,2]
[341560375,1730992247879,-500.0,0.00030958,2]
[341560376,1730992247889,-306.71095064,0.00030982,2]
[341560377,1730992247899,-600.0,0.00030999,2]
[341560378,1730992247909,-200.0,0.00031,120]
[341560379,1730992247919,-5000.0,0.00031,3]
[341560380,1730992247928,-5000.0,0.00031,3]
[341560381,1730992247939,-151.0,0.00031,7]
[341560382,1730992247950,-151.0,0.00031,7]
[341560383,1730992247960,-151.0,0.00031,7]
[341560384,1730992247970,-207.491464,0.00031,7]
[341560385,1730992248127,-2250.51137776,0.00031021,2]
[341560386,1730992248138,-405.359723,0.00031069,2]
[341560387,1730992248148,-313.842593,0.00031069,2]
[341560388,1730992248158,-524.417177,0.00031069,2]
[341560389,1730992248168,-1000.0,0.00031132,2]
[341560390,1730992248178,-2178.88,0.00031232,2]
[341560391,1730992248187,-500.0,0.00031232,2]
[341560392,1730992248198,-500.0,0.00031232,2]
[341560393,1730992248207,-151.0,0.00031232,7]
[341560394,1730992248217,-500.0,0.00031232,2]
[341560395,1730992248227,-151.0,0.00031232,7]
[341560396,1730992248237,-151.0,0.00031232,7]
[341560397,1730992248246,-500.0,0.00031232,2]
[341560398,1730992248256,-500.0,0.00031232,2]
[341560399,1730992248265,-500.0,0.00031232,2]
[341560400,1730992248275,-316.5,0.00031232,2]
[341560401,1730992248284,-500.0,0.00031232,2]
[341560402,1730992248294,-500.0,0.00031232,2]
[341560403,1730992248303,-928.94,0.00031232,2]
[341560404,1730992248313,-2132.11,0.00031232,2]
[341560405,1730992248322,-4128.35,0.00031232,2]
[341560406,1730992248336,-500.0,0.00031232,2]
[341560407,1730992248345,-536.24,0.00031232,2]
[341560408,1730992248354,-500.0,0.00031232,2]
[341560409,1730992248363,-398.94,0.00031232,2]
[341560410,1730992248374,-2250.51137776,0.0003135,2]
[341560411,1730992248383,-405.359723,0.00031444,2]
[341560412,1730992248397,-313.842593,0.00031444,2]
[341560413,1730992248407,-524.417177,0.00031444,2]
[341560414,1730992248417,-177.31930839,0.00031481,2]
[341560415,1730992248427,-150.0,0.000315,8]
[341560416,1730992248437,-500.0,0.000315,36]
[341560417,1730992248447,-541.90042446,0.00031504,7]
[341560418,1730992248457,-2178.88,0.00031506,2]
[341560419,1730992248466,-500.0,0.00031506,2]
[341560420,1730992248475,-500.0,0.00031506,2]
[341560421,1730992248485,-151.0,0.00031506,7]
[341560422,1730992248495,-500.0,0.00031506,2]
[341560423,1730992248507,-151.0,0.00031506,7]
[341560424,1730992248517,-500.0,0.00031506,2]
[341560425,1730992248526,-500.0,0.00031506,2]
[341560426,1730992248536,-500.0,0.00031506,2]
[341560427,1730992248546,-500.0,0.00031506,2]
[341560428,1730992248556,-480.87757578,0.00031506,2]
[341560429,1730992248568,-928.94,0.00031506,2]
[341560430,1730992248581,-2132.11,0.00031506,2]
[341560431,1730992248591,-4128.35,0.00031506,2]
[341560432,1730992248601,-500.0,0.00031506,2]
[341560433,1730992248612,-536.24,0.00031506,2]
[341560434,1730992248622,-500.0,0.00031506,2]
[341560435,1730992248633,-151.0,0.00031528,7]
[341560436,1730992248643,-98061.66886488,0.00031581,2]
[341560437,1730992248654,-27180.62472278,0.00031581,2]
[341560438,1730992248664,-151.0,0.00031581,7]
[341560439,1730992248673,-203.732872,0.00031581,7]
[341560440,1730992248682,-151.0,0.00031581,7]
[341560441,1730992248692,-151.0,0.00031581,7]
[341560442,1730992248702,-592.17637521,0.000316,7]
[341560443,1730992248712,-168.834,0.0003162,30]
[341560444,1730992248722,-2250.51137776,0.00031678,2]
[341560445,1730992248733,-500.0,0.00031681,3]
[341560446,1730992248745,-150.06,0.00031681,3]
[341560447,1730992248754,-150.06,0.00031681,2]
[341560448,1730992248764,-150.112235,0.000317,15]
[341560449,1730992248774,-15052.3621597,0.000317,3]
[341560450,1730992248784,-151.0,0.000317,7]
[341560451,1730992248794,-150.112233,0.000317,12]
[341560452,1730992248804,-151.0,0.00031739,7]
[341560453,1730992248813,-500.0,0.00031773,5]
[341560454,1730992248824,-500.0,0.00031773,5]
[341560455,1730992248839,-500.0,0.00031773,5]
[341560456,1730992248848,-500.0,0.00031773,5]
[341560457,1730992248858,-500.0,0.00031773,5]
[341560458,1730992248867,-500.0,0.00031773,5]
[341560459,1730992248877,-500.0,0.00031773,5]
[341560460,1730992248886,-500.0,0.00031773,5]
[341560461,1730992248895,-500.86661202,0.00031773,5]
[341560462,1730992248905,-2178.88,0.0003178,2]
[341560463,1730992248915,-500.0,0.0003178,2]
[341560464,1730992248924,-500.0,0.0003178,2]
[341560465,1730992248934,-500.0,0.0003178,2]
[341560466,1730992248943,-500.0,0.0003178,2]
[341560467,1730992248953,-500.0,0.0003178,2]
[341560468,1730992248962,-500.0,0.0003178,2]
[341560469,1730992248972,-413.36,0.0003178,2]
[341560470,1730992248982,-928.94,0.0003178,2]
[341560471,1730992248992,-2132.11,0.0003178,2]
[341560472,1730992249002,-4128.35,0.0003178,2]
[341560473,1730992249012,-472.87,0.0003178,2]
[341560474,1730992249023,-536.24,0.0003178,2]
[341560475,1730992249033,-467.82888124,0.0003178,2]
[341560476,1730992249044,-13418.7,0.000318,14]
[341560477,1730992249054,-150.112233,0.000318,11]
[341560478,1730992249064,-150.112235,0.000318,14]
[341560479,1730992249073,-163.28,0.000318,7]
[341560480,1730992249085,-152.67933572,0.000318,7]